bitfinex-derivatives/quotes_ETHF0:USTF0_20230105
["timestamp","ask_amount","ask_price","bid_price","bid_amount"]
[1672928148169,6.09130257,1249.9,1249.7,1.7988026]
[1672928149220,6.09130257,1249.9,1249.7,4.18140333]
[1672928149437,6.09130257,1249.9,1249.7,1.7988026]
[1672928152059,6.09130257,1249.9,1249.7,4.18140333]
[1672928153222,6.09130257,1249.9,1249.7,1.7988026]
[1672928154061,6.09130257,1249.9,1249.7,4.18140333]
[1672928154371,6.09130257,1249.9,1249.8,1.7988026]
[1672928155739,6.09130257,1249.9,1249.7,4.18140333]
[1672928155944,6.09130257,1249.9,1249.7,1.7988026]
[1672928156159,6.09130257,1249.9,1249.7,4.18140333]
[1672928156680,6.09130257,1249.9,1249.7,1.7988026]
[1672928157099,6.09130257,1249.9,1249.7,4.18140333]
[1672928157525,6.09130257,1249.9,1249.8,4.2988026]
[1672928157937,6.09130257,1249.9,1249.8,2.5]
[1672928158269,6.09130257,1249.9,1249.7,4.18140333]
[1672928158679,6.09130257,1249.9,1249.8,1.7988026]
[1672928158889,6.09130257,1249.9,1249.8,4.2988026]
[1672928159321,6.09130257,1249.9,1249.8,1.7988026]
[1672928159630,6.09130257,1249.9,1249.7,4.18140333]
[1672928160052,6.09130257,1249.9,1249.7,1.7988026]
[1672928160572,10.23971529,1249.9,1249.7,1.7988026]
[1672928160786,6.09130257,1249.9,1249.7,1.7988026]
[1672928161624,6.09130257,1249.9,1249.7,4.18140333]
[1672928162146,6.09130257,1249.9,1249.8,1.7988026]
[1672928162357,6.09130257,1249.9,1249.7,4.18140333]
[1672928162676,6.09130257,1249.9,1249.8,1.7988026]
[1672928162889,6.09130257,1249.9,1249.7,4.17681028]
[1672928163100,6.09130257,1249.9,1249.8,4.2988026]
[1672928163310,9.29910257,1250.0,1249.8,7.5066026]
[1672928164574,6.09130257,1250.0,1249.8,4.2988026]
[1672928166143,10.94751529,1250.1,1249.9,2.5]
[1672928166351,2.5,1250.0,1249.9,2.5]
[1672928167311,7.73971529,1250.2,1249.9,7.5066026]
[1672928167516,2.5,1250.1,1249.9,7.5066026]
[1672928168040,6.09130257,1250.1,1249.9,7.5066026]
[1672928168247,2.5,1250.1,1249.9,7.5066026]
[1672928169511,3.59130257,1250.2,1249.9,7.5066026]
[1672928169829,10.94751529,1250.3,1249.9,7.5066026]
[1672928170144,6.09130257,1250.2,1249.9,7.5066026]
[1672928170353,2.5,1250.2,1249.9,15.4936026]
[1672928171299,2.5,1250.2,1249.9,4.2988026]
[1672928171513,6.09130257,1250.2,1249.9,5.0066026]
[1672928171931,6.09130257,1250.2,1250.0,2.5]
[1672928173390,2.5,1250.2,1250.0,2.5]
[1672928175707,2.5,1250.2,1249.9,12.9936026]
[1672928175922,6.09130257,1250.2,1249.9,11.1948]
[1672928176452,6.09130257,1250.2,1249.8,12.2858026]
[1672928177707,6.09130257,1250.2,1249.9,3.2078]
[1672928177917,6.09130257,1250.2,1250.0,2.5]
[1672928178128,2.5,1250.2,1250.0,2.5]
[1672928178446,6.09130257,1250.2,1250.0,2.5]
[1672928179180,2.5,1250.2,1250.0,2.5]
[1672928179700,6.09130257,1250.2,1250.0,2.5]
[1672928179911,2.5,1250.2,1250.0,2.5]
[1672928181388,2.5,1250.2,1249.9,3.2078]
[1672928181605,6.09130257,1250.2,1250.0,2.5]
[1672928182332,6.09130257,1250.2,1249.9,3.2078]
[1672928184120,6.09130257,1250.2,1250.0,2.5]
[1672928185805,2.5,1250.2,1250.0,2.5]
[1672928186329,6.09130257,1250.2,1250.0,2.5]
[1672928187906,2.5,1250.2,1250.0,2.5]
[1672928188748,3.59130257,1250.4,1250.0,12.2858026]
[1672928188953,6.09130257,1250.4,1250.1,3.2078]
[1672928189266,2.5,1250.3,1250.2,2.5]
[1672928189475,2.5,1250.3,1250.1,3.2078]
[1672928189685,5.7078,1250.3,1250.1,3.2078]
[1672928190735,6.09130257,1250.4,1250.2,2.5]
[1672928190941,2.5,1250.3,1250.2,2.5]
[1672928193787,6.09130257,1250.4,1250.2,2.5]
[1672928194099,2.5,1250.3,1250.2,2.5]
[1672928194314,2.5,1250.3,1250.1,11.1948]
[1672928194520,2.5,1250.3,1250.1,3.2078]
[1672928194728,2.5,1250.3,1250.0,13.4672026]
[1672928197464,2.5,1250.3,1250.0,4.2988026]
[1672928198618,2.5,1250.3,1250.0,7.5066026]
[1672928201347,6.09130257,1250.3,1250.0,5.7078]
[1672928201668,6.09130257,1250.3,1250.0,7.5066026]
[1672928203126,6.09130257,1250.3,1250.0,5.7078]
[1672928203338,6.09130257,1250.3,1250.0,3.2078]
[1672928203773,6.09130257,1250.3,1250.0,5.7078]
[1672928204507,2.5,1250.3,1250.0,7.5066026]
[1672928205768,6.09130257,1250.3,1250.0,7.5066026]
[1672928209344,6.09130257,1250.3,1250.0,5.0066026]
[1672928209762,6.09130257,1250.3,1250.0,6.20500555]
[1672928209972,3.2078,1250.2,1250.0,1.19840295]
[1672928210183,2.5,1250.1,1250.0,1.19840295]
[1672928211136,2.5,1250.1,1250.0,2.99720555]
[1672928211865,2.5,1250.1,1250.0,1.19840295]
[1672928212393,2.5,1250.1,1249.9,10.98420555]
[1672928213862,2.5,1250.1,1249.9,2.99720555]
[1672928214393,2.5,1250.1,1249.9,1.19840295]
[1672928214808,3.2078,1250.0,1249.9,1.19840295]
[1672928215867,2.5,1250.1,1249.9,1.19840295]
[1672928216700,2.5,1250.1,1249.9,2.99720555]
[1672928216910,2.5,1250.1,1249.9,1.19840295]
[1672928220388,5.7078,1250.1,1249.9,1.19840295]
[1672928222702,9.29910257,1250.1,1249.9,1.19840295]
[1672928224176,9.29910257,1250.1,1249.8,5.49720555]
[1672928224389,9.29910257,1250.1,1249.8,2.99720555]
[1672928224704,2.5,1250.1,1249.9,1.19840295]
[1672928224907,2.5,1250.1,1250.0,2.5]
[1672928225331,2.5,1250.1,1249.9,3.69840295]
[1672928225543,2.5,1250.1,1249.9,5.49720555]
[1672928226067,5.7078,1250.1,1249.9,3.69840295]
[1672928226596,5.7078,1250.1,1249.9,5.49720555]
[1672928227021,5.7078,1250.1,1249.9,1.19840295]
[1672928227543,5.7078,1250.1,1249.9,2.99720555]
[1672928228067,5.7078,1250.1,1249.9,1.19327367]
[1672928228803,2.5,1250.1,1249.9,1.19327367]
[1672928229009,2.5,1250.1,1250.0,2.5]
[1672928229221,13.44751529,1250.3,1250.0,2.5]
[1672928229534,9.29910257,1250.3,1250.0,2.5]
[1672928229747,13.44751529,1250.3,1250.0,2.5]
[1672928229957,9.29910257,1250.3,1250.0,2.5]
[1672928231218,9.29910257,1250.3,1250.0,4.2988026]
[1672928231638,9.29910257,1250.3,1250.0,2.5]
[1672928232169,9.29910257,1250.3,1250.0,4.2988026]
[1672928236263,9.29910257,1250.3,1250.0,2.5]
[1672928236473,13.44751529,1250.3,1250.0,2.5]
[1672928237105,9.29910257,1250.3,1250.0,4.2988026]
[1672928240158,3.59130257,1250.3,1250.1,3.2078]
[1672928240363,6.09130257,1250.4,1250.2,2.5]
[1672928241098,6.09130257,1250.4,1250.1,5.0066026]
[1672928241947,6.09130257,1250.4,1250.1,3.2078]
[1672928242578,6.09130257,1250.4,1250.1,5.0066026]
[1672928242891,6.09130257,1250.4,1250.2,2.5]
[1672928243730,6.09130257,1250.4,1250.1,5.0066026]
[1672928243941,6.09130257,1250.4,1250.2,2.5]
[1672928245308,6.09130257,1250.4,1250.1,5.0066026]
[1672928245516,6.09130257,1250.4,1250.2,2.5]
[1672928246149,6.09130257,1250.4,1250.1,3.2078]
[1672928247299,6.09130257,1250.4,1250.0,14.68000681]
[1672928247515,9.29910257,1250.4,1250.0,17.88780681]
[1672928248459,9.29910257,1250.4,1250.1,1.7988026]
[1672928249720,9.29910257,1250.4,1250.2,2.5]
[1672928250350,5.7078,1250.4,1250.2,2.5]
[1672928250662,9.29910257,1250.4,1250.2,2.5]
[1672928251610,9.29910257,1250.4,1250.1,1.7988026]
[1672928252554,9.29910257,1250.4,1250.0,17.88780681]
[1672928253605,9.29910257,1250.4,1250.1,1.7988026]
[1672928253921,5.7078,1250.4,1250.2,2.5]
[1672928254653,2.5,1250.4,1250.2,2.5]
[1672928255180,2.5,1250.4,1250.1,5.0066026]
[1672928255391,2.5,1250.4,1250.2,2.5]
[1672928257699,2.5,1250.4,1250.1,5.0066026]
[1672928258127,2.5,1250.4,1250.1,3.2078]
[1672928258332,6.09130257,1250.4,1250.1,3.2078]
[1672928258746,6.09130257,1250.4,1250.0,14.68000681]
[1672928259172,2.5,1250.4,1250.2,2.5]
[1672928259806,2.5,1250.4,1250.0,12.2858026]
[1672928260014,2.5,1250.4,1250.0,14.68000681]
[1672928260223,6.09130257,1250.4,1250.1,5.0066026]
[1672928260435,6.09130257,1250.4,1250.2,2.5]
[1672928262438,6.09130257,1250.4,1250.1,5.0066026]
[1672928262749,6.09130257,1250.4,1250.2,2.5]
[1672928264320,6.09130257,1250.4,1250.1,1.7988026]
[1672928264532,6.09130257,1250.4,1250.0,4.2988026]
[1672928264743,10.23971529,1250.4,1250.0,4.2988026]
[1672928265062,10.23971529,1250.4,1250.0,6.69300681]
[1672928265379,6.79910257,1250.3,1250.0,4.2988026]
[1672928265686,2.5,1250.2,1250.0,4.2988026]
[1672928266316,2.5,1250.2,1250.0,6.69300681]
[1672928266960,2.5,1250.2,1250.1,1.7988026]
[1672928267266,2.5,1250.2,1250.0,6.69300681]
[1672928268216,2.5,1250.2,1250.1,1.7988026]
[1672928270646,6.79910257,1250.3,1250.1,1.7988026]
[1672928270835,3.2078,1250.3,1250.1,5.0066026]
[1672928272412,6.79910257,1250.3,1250.1,5.0066026]
[1672928272623,2.5,1250.2,1250.1,5.0066026]
[1672928272945,2.5,1250.2,1250.1,1.7988026]
[1672928278926,6.09130257,1250.2,1250.0,4.19300681]
[1672928279137,6.09130257,1250.2,1250.0,1.7988026]
[1672928280719,2.5,1250.2,1250.0,1.7988026]
[1672928281247,2.5,1250.2,1250.0,4.19300681]
[1672928281555,2.5,1250.2,1250.0,1.7988026]
[1672928281876,6.09130257,1250.2,1250.0,1.7988026]
[1672928282190,2.5,1250.2,1250.0,4.19300681]
[1672928283137,2.5,1250.2,1250.0,1.7988026]
[1672928283554,2.5,1250.2,1250.0,4.19300681]
[1672928284397,2.5,1250.2,1250.0,1.7988026]
[1672928284815,2.5,1250.2,1250.1,1.7988026]
[1672928285028,2.5,1250.2,1250.1,4.2988026]
[1672928285449,2.5,1250.2,1250.1,1.7988026]
[1672928285971,3.59130257,1250.3,1250.1,1.7988026]
[1672928286181,2.5,1250.2,1250.1,4.19300681]
[1672928286392,2.5,1250.2,1250.1,2.39420421]
[1672928287545,2.5,1250.2,1250.1,4.19291365]
[1672928288917,6.09130257,1250.4,1250.1,4.19291365]
[1672928289331,6.09130257,1250.4,1250.2,1.79870944]
[1672928290069,6.09130257,1250.4,1250.1,4.19291365]
[1672928291125,9.29910257,1250.4,1250.1,7.40071365]
[1672928291954,9.29910257,1250.4,1250.2,4.29870944]
[1672928292799,9.29910257,1250.4,1250.2,1.79870944]
[1672928293536,9.29910257,1250.4,1250.1,7.40071365]
[1672928294807,9.29910257,1250.4,1250.2,2.5]
[1672928295217,9.29910257,1250.4,1250.1,5.00650944]
[1672928295431,9.29910257,1250.4,1250.2,1.79870944]
[1672928295951,9.29910257,1250.4,1250.3,2.5]
[1672928296372,9.29910257,1250.4,1250.2,3.29870944]
[1672928297432,9.29910257,1250.4,1250.2,3.29271228]
[1672928297634,6.09130257,1250.4,1250.2,3.29271228]
[1672928297845,2.5,1250.4,1250.2,3.29271228]
[1672928298370,6.09130257,1250.4,1250.2,3.29271228]
[1672928298687,2.5,1250.4,1250.2,3.29271228]
[1672928299322,6.09130257,1250.4,1250.2,3.29271228]
[1672928299535,2.5,1250.4,1250.2,3.29271228]
[1672928301111,2.5,1250.4,1250.2,1.79271228]
[1672928301316,2.5,1250.4,1250.2,4.29271228]
[1672928302052,3.59130257,1250.5,1250.3,3.2078]
[1672928302266,3.59130257,1250.6,1250.3,5.60200421]
[1672928302579,2.5,1250.6,1250.4,1.5]
[1672928303199,3.59130257,1250.8,1250.4,3.89420421]
[1672928303410,6.09130257,1250.8,1250.5,3.2078]
[1672928303625,2.5,1250.7,1250.6,2.5]
[1672928304154,2.5,1250.7,1250.5,3.2078]
[1672928306039,6.09130257,1250.7,1250.4,2.5]
[1672928306880,2.5,1250.7,1250.4,2.5]
[1672928307626,5.7078,1250.7,1250.4,2.5]
[1672928312564,3.2078,1250.7,1250.4,2.5]
[1672928313713,9.29910257,1250.8,1250.4,5.7078]
[1672928318348,9.29910257,1250.8,1250.4,2.5]
[1672928324547,9.29910257,1250.8,1250.3,11.6684]
[1672928326439,13.44751529,1250.8,1250.3,11.6684]
[1672928327597,3.2078,1250.7,1250.3,14.8762]
[1672928327810,2.5,1250.6,1250.3,14.8762]
[1672928328964,2.5,1250.6,1250.3,11.6684]
[1672928330540,2.5,1250.6,1250.3,14.06260421]
[1672928331799,2.5,1250.6,1250.3,12.88120421]
[1672928332428,2.5,1250.6,1250.3,4.89420421]
[1672928333268,2.5,1250.6,1250.3,8.10200421]
[1672928334639,2.5,1250.6,1250.3,5.60200421]
[1672928334844,2.5,1250.6,1250.3,3.2078]
[1672928335161,2.5,1250.6,1250.3,5.60200421]
[1672928336111,2.5,1250.6,1250.3,2.39420421]
[1672928338215,2.5,1250.6,1250.3,3.81183858]
[1672928339363,2.5,1250.6,1250.4,2.5]
[1672928340205,2.5,1250.6,1250.4,4.89420421]
[1672928341261,6.09130257,1250.6,1250.3,7.88747063]
[1672928341474,6.09130257,1250.6,1250.3,4.89420421]
[1672928341674,6.09130257,1250.6,1250.3,7.88747063]
[1672928342206,6.09130257,1250.6,1250.4,2.39420421]
[1672928342417,6.09130257,1250.6,1250.3,7.88747063]
[1672928342629,6.09130257,1250.6,1250.4,4.89420421]
[1672928344310,6.09130257,1250.6,1250.4,2.39420421]
[1672928345358,6.09130257,1250.6,1250.4,3.8118165]
[1672928345668,6.09130257,1250.6,1250.4,2.39420421]
[1672928345880,6.09130257,1250.6,1250.4,3.81181982]
[1672928346093,6.09130257,1250.6,1250.4,2.39420421]
[1672928348088,6.09130257,1250.6,1250.4,3.81181315]
[1672928348300,6.09130257,1250.6,1250.5,3.69965764]
[1672928348509,6.09130257,1250.6,1250.5,1.19965764]
[1672928351666,10.23971529,1250.6,1250.4,1.19965764]
[1672928351876,6.79910257,1250.5,1250.4,1.19965764]
[1672928353873,10.94751529,1250.5,1250.3,1.19965764]
[1672928354181,10.94751529,1250.5,1250.2,1.19965764]
[1672928354182,2.5,1250.3,1250.2,1.19965764]
[1672928354714,5.7078,1250.3,1250.2,1.19965764]
[1672928355658,5.7078,1250.3,1250.1,1.19965764]
[1672928356607,5.7078,1250.3,1250.2,1.19965764]
[1672928359132,5.7078,1250.3,1250.1,2.99646121]
[1672928359547,5.7078,1250.3,1250.2,1.19965764]
[1672928361763,5.7078,1250.3,1250.1,6.20426121]
[1672928361973,5.7078,1250.3,1250.2,1.19965764]
[1672928362601,5.7078,1250.3,1250.1,6.20426121]
[1672928362800,2.5,1250.3,1250.2,1.19965764]
[1672928363227,2.5,1250.3,1250.1,2.99646121]
[1672928363551,2.5,1250.3,1250.1,1.19965764]
[1672928363862,2.5,1250.3,1250.1,1.19659555]
[1672928364915,3.2078,1250.2,1249.9,4.19100778]
[1672928365126,3.2078,1250.2,1249.9,1.79680357]
[1672928365539,3.2078,1250.0,1249.8,4.19100778]
[1672928365860,3.2078,1250.0,1249.8,1.79680357]
[1672928366067,2.5,1249.9,1249.8,1.79680357]
[1672928366278,2.5,1249.9,1249.7,4.19100778]
[1672928367120,2.5,1249.9,1249.7,1.79680357]
[1672928370170,2.5,1249.9,1249.7,4.29680357]
[1672928370797,2.5,1249.9,1249.7,1.79680357]
[1672928371008,2.5,1249.9,1249.7,4.29680357]
[1672928371638,2.5,1249.9,1249.7,1.79680357]
[1672928372061,2.5,1249.9,1249.7,4.29680357]
[1672928373433,2.5,1249.9,1249.7,1.79680357]
[1672928373951,2.49525877,1249.9,1249.8,2.5]
[1672928374165,2.49525877,1249.9,1249.7,4.29680357]
[1672928375113,2.49525877,1249.9,1249.7,2.5]
[1672928376373,2.49525877,1249.9,1249.7,4.29680357]
[1672928376996,1.5,1250.1,1249.7,12.28380357]
[1672928377312,1.5,1250.1,1249.8,5.00460357]
[1672928377522,1.5,1250.1,1249.9,2.5]
[1672928379731,1.5,1250.1,1249.8,5.00460357]
[1672928381416,1.5,1250.1,1249.8,1.79680357]
[1672928382141,1.5,1250.1,1249.7,17.88580778]
[1672928382563,1.5,1250.1,1249.9,2.5]
[1672928384257,1.5,1250.1,1249.8,1.79680357]
[1672928384988,4.7078,1250.1,1249.8,5.00460357]
[1672928385945,4.7078,1250.1,1249.9,2.5]
[1672928387720,4.7078,1250.1,1249.8,5.00460357]
[1672928387930,4.7078,1250.1,1249.9,2.5]
[1672928388989,1.5,1250.1,1249.9,2.5]
[1672928389201,1.5,1250.1,1249.9,4.29680357]
[1672928389721,1.5,1250.1,1249.9,2.5]
[1672928389933,1.5,1250.1,1249.8,9.89880778]
[1672928390978,1.5,1250.1,1249.8,6.69100778]
[1672928391195,1.5,1250.1,1249.9,1.79680357]
[1672928391407,1.5,1250.1,1249.8,6.69100778]
[1672928391822,1.5,1250.1,1249.9,1.79680357]
[1672928392032,1.5,1250.1,1250.0,2.5]
[1672928392665,1.5,1250.1,1249.9,3.29680357]
[1672928394134,1.5,1250.1,1249.9,1.79680357]
[1672928394663,3.2078,1250.0,1249.8,4.19100778]
[1672928394877,2.5,1249.9,1249.8,4.19100778]
[1672928395079,2.5,1249.9,1249.8,2.39420421]
[1672928395296,2.5,1249.9,1249.8,4.19064447]
[1672928396247,2.5,1249.9,1249.8,2.39420421]
[1672928396877,2.5,1249.9,1249.8,3.81238377]
[1672928398548,2.5,1249.9,1249.8,2.39420421]
[1672928398973,2.5,1249.9,1249.8,4.19099696]
[1672928399289,2.5,1249.9,1249.8,2.39420421]
[1672928400341,2.5,1249.9,1249.8,4.19135254]
[1672928400550,2.5,1249.9,1249.8,2.39420421]
[1672928400965,2.5,1249.9,1249.8,4.19136204]
[1672928401175,2.5,1249.9,1249.8,2.39420421]
[1672928401493,2.5,1249.9,1249.8,4.19217854]
[1672928401703,2.5,1249.9,1249.8,1.79797433]
[1672928402440,2.5,1249.9,1249.8,4.19217854]
[1672928402652,2.5,1249.9,1249.8,2.39420421]
[1672928402860,2.5,1249.9,1249.8,4.1921702]
[1672928403068,2.5,1249.9,1249.8,2.39420421]
[1672928403704,2.5,1249.9,1249.8,4.1931999]
[1672928404857,2.5,1249.9,1249.8,1.79899569]
[1672928405070,2.5,1249.9,1249.8,4.1931999]
[1672928405381,2.5,1249.9,1249.8,2.39420421]
[1672928408328,2.5,1249.9,1249.8,4.19308403]
[1672928409375,2.5,1249.9,1249.8,1.79887982]
[1672928411057,2.5,1249.9,1249.7,4.19308403]
[1672928411784,5.7078,1249.9,1249.7,4.19308403]
[1672928411989,5.7078,1249.9,1249.7,1.79887982]
[1672928413890,5.7078,1249.9,1249.7,4.19308403]
[1672928414309,5.7078,1249.9,1249.7,1.79887982]
[1672928422923,2.5,1250.0,1249.8,1.79887982]
[1672928423138,2.5,1250.0,1249.9,2.5]
[1672928423560,2.5,1250.0,1249.8,4.29887982]
[1672928424076,2.5,1250.0,1249.8,1.79887982]
[1672928425765,2.5,1250.0,1249.8,4.29887982]
[1672928425969,2.5,1250.0,1249.8,1.79887982]
[1672928427757,2.5,1250.0,1249.7,4.19308403]
[1672928427758,3.2078,1249.9,1249.7,4.19308403]
[1672928427973,2.5,1249.8,1249.7,1.79887982]
[1672928430380,2.5,1249.8,1249.6,1.79887982]
[1672928430595,3.2078,1249.7,1249.5,1.79887982]
[1672928430806,2.5,1249.6,1249.5,1.79887982]
[1672928433552,2.5,1249.6,1249.5,4.19308403]
[1672928434284,2.5,1249.6,1249.5,1.79887982]
[1672928434486,2.5,1249.6,1249.5,4.19308403]
[1672928435857,2.5,1249.6,1249.5,1.79887982]
[1672928437855,2.5,1249.6,1249.4,4.19308403]
[1672928438059,2.5,1249.6,1249.4,1.79887982]
[1672928438907,2.5,1249.6,1249.4,4.19308403]
[1672928439430,2.5,1249.6,1249.4,1.79887982]
[1672928439641,2.5,1249.6,1249.4,4.19308403]
[1672928440264,2.5,1249.6,1249.4,1.79887982]
[1672928441009,2.5,1249.6,1249.4,6.69308403]
[1672928441219,2.5,1249.6,1249.4,4.19308403]
[1672928442375,2.5,1249.6,1249.4,6.69308403]
[1672928442587,2.5,1249.6,1249.5,1.79887982]
[1672928442795,3.2078,1249.7,1249.5,4.29887982]
[1672928448467,9.29323778,1249.9,1249.5,7.50667982]
[1672928448782,5.7078,1249.9,1249.6,1.79887982]
[1672928449101,2.5,1249.8,1249.7,1.5]
[1672928449934,2.5,1249.8,1249.6,4.29887982]
[1672928451096,2.5,1249.6,1249.5,1.79887982]
[1672928451305,2.5,1249.6,1249.4,4.29887982]
[1672928451937,3.2078,1249.5,1249.4,1.79887982]
[1672928452468,3.2078,1249.5,1249.4,1.79518314]
[1672928455081,5.7078,1249.6,1249.4,1.79518314]
[1672928456769,5.7078,1249.6,1249.3,4.89420421]
[1672928460658,3.2078,1249.4,1249.2,2.39420421]
[1672928460860,1.5,1249.3,1249.2,2.39420421]
[1672928462115,1.5,1249.3,1249.1,5.38747063]
[1672928462324,1.5,1249.3,1249.2,2.39420421]
[1672928462538,1.5,1249.3,1249.2,4.89420421]
[1672928463275,1.5,1249.3,1249.2,2.39420421]
[1672928463485,1.5,1249.3,1249.2,4.89420421]
[1672928463696,1.5,1249.3,1249.2,2.5]
[1672928463914,1.5,1249.3,1249.2,2.39420421]
[1672928464224,1.5,1249.3,1249.2,4.89420421]
[1672928465382,2.5,1249.4,1249.2,4.89420421]
[1672928468427,3.2078,1249.5,1249.2,9.30627132]
[1672928468640,3.2078,1249.5,1249.2,7.88747063]
[1672928469265,3.2078,1249.5,1249.3,2.39420421]
[1672928469490,3.2078,1249.5,1249.4,2.5]
[1672928470007,3.2078,1249.5,1249.3,4.89420421]
[1672928471058,2.5,1249.4,1249.3,4.89420421]
[1672928471483,2.5,1249.4,1249.3,2.39420421]
[1672928472741,2.5,1249.4,1249.2,7.88747063]
[1672928473157,2.5,1249.4,1249.3,2.39420421]
[1672928473368,2.5,1249.4,1249.3,4.89420421]
[1672928474104,2.5,1249.4,1249.3,2.39420421]
[1672928474738,2.5,1249.4,1249.2,4.89420421]
[1672928476110,2.5,1249.4,1249.2,2.39420421]
[1672928476416,3.2078,1249.3,1249.2,2.39420421]
[1672928476627,2.5,1249.2,1249.1,7.88747063]
[1672928476831,2.5,1249.2,1249.1,6.91216868]
[1672928477669,2.5,1249.2,1249.1,9.30915401]
[1672928477883,2.5,1249.2,1249.1,6.91216868]
[1672928478093,3.2078,1249.3,1249.1,6.91216868]
[1672928478305,3.2078,1249.3,1249.2,2.39660617]
[1672928479783,2.5,1249.4,1249.2,3.81546757]
[1672928480195,2.5,1249.4,1249.2,6.80873399]
[1672928481243,2.5,1249.4,1249.3,2.39660617]
[1672928481460,2.5,1249.4,1249.3,2.5]
[1672928481666,2.5,1249.4,1249.3,4.89660617]
[1672928482933,2.5,1249.4,1249.3,2.5]
[1672928483145,4.7078,1249.5,1249.3,2.5]
[1672928483357,4.7078,1249.5,1249.3,4.89660617]
[1672928483776,4.7078,1249.5,1249.4,1.19823377]
[1672928485036,1.5,1249.5,1249.3,4.89660617]
[1672928485248,1.5,1249.5,1249.3,8.10440617]
[1672928485566,1.5,1249.5,1249.4,1.19834641]
[1672928485978,2.5,1249.6,1249.3,8.10440617]
[1672928486193,2.5,1249.6,1249.5,1.1985833]
[1672928487036,2.5,1249.6,1249.4,1.1985833]
[1672928487459,2.5,1249.6,1249.5,1.1985833]
[1672928488190,2.5,1249.6,1249.4,1.1985833]
[1672928488511,2.5,1249.6,1249.5,1.1985833]
[1672928489555,2.5,1249.6,1249.4,1.1985833]
[1672928490394,2.5,1249.6,1249.5,1.1985833]
[1672928491868,5.7078,1249.6,1249.5,1.1985833]
[1672928494074,3.2078,1249.6,1249.5,1.1985833]
[1672928494388,5.7078,1249.6,1249.5,1.1985833]
[1672928495753,5.7078,1249.6,1249.5,3.6985833]
[1672928495964,3.2078,1249.6,1249.5,3.6985833]
[1672928496288,3.2078,1249.6,1249.5,1.1985833]
[1672928496597,5.7078,1249.6,1249.5,1.1985833]
[1672928499851,9.29323778,1249.6,1249.4,1.1985833]
[1672928500058,2.5,1249.5,1249.4,1.1985833]
[1672928500378,6.08543778,1249.5,1249.3,1.1985833]
[1672928500692,3.2078,1249.4,1249.3,1.1985833]
[1672928505001,6.08543778,1249.5,1249.3,1.1985833]
[1672928505216,3.2078,1249.4,1249.3,1.1985833]
[1672928510159,3.2078,1249.4,1249.2,3.8155102]
[1672928510368,3.2078,1249.4,1249.3,2.5]
[1672928511417,5.7078,1249.5,1249.3,2.5]
[1672928511637,5.7078,1249.5,1249.4,1.19901512]
[1672928512369,5.7078,1249.5,1249.3,3.69901512]
[1672928512574,5.7078,1249.5,1249.4,1.19901512]
[1672928514678,2.5,1249.5,1249.4,1.19901512]
[1672928515093,5.7078,1249.5,1249.4,1.19901512]
[1672928516036,3.2078,1249.5,1249.4,1.19901512]
[1672928516254,3.2078,1249.5,1249.4,3.69901512]
[1672928517303,3.2078,1249.5,1249.4,5.49755246]
[1672928518464,2.5,1249.6,1249.4,5.49755246]
[1672928518777,5.7078,1249.6,1249.4,2.99755246]
[1672928518984,5.7078,1249.6,1249.4,1.19901512]
[1672928519201,9.29323778,1249.6,1249.4,1.19901512]
[1672928519512,5.7078,1249.6,1249.4,1.19901512]
[1672928520989,3.2078,1249.5,1249.4,1.19901512]
[1672928522346,3.2078,1249.5,1249.3,2.99755246]
[1672928522556,2.5,1249.4,1249.3,2.99755246]
[1672928525295,2.5,1249.4,1249.3,2.99131637]
[1672928525611,2.5,1249.4,1249.3,1.19901512]
[1672928526041,5.7078,1249.4,1249.3,1.19901512]
[1672928529924,3.2078,1249.4,1249.3,1.19901512]
[1672928530555,3.2078,1249.4,1249.3,2.5]
[1672928531291,3.2078,1249.4,1249.3,3.69913936]
[1672928531816,3.2078,1249.5,1249.3,3.69913936]
[1672928532029,2.5,1249.4,1249.3,1.19913936]
[1672928532340,2.5,1249.4,1249.3,2.5]
[1672928534132,3.2078,1249.5,1249.3,2.5]
[1672928534339,3.2078,1249.5,1249.4,1.1994263]
[1672928537816,6.79323778,1249.5,1249.3,3.6994263]
[1672928538029,2.5,1249.4,1249.3,3.6994263]
[1672928538236,2.5,1249.4,1249.3,1.1994263]
[1672928538449,2.5,1249.4,1249.3,2.5]
[1672928538760,2.5,1249.4,1249.3,4.89660617]
[1672928539496,2.5,1249.4,1249.3,2.5]
[1672928539709,3.2078,1249.5,1249.3,2.5]
[1672928539917,3.2078,1249.5,1249.4,1.19990758]
[1672928541079,6.08543778,1249.6,1249.4,1.19990758]
[1672928541295,9.29323778,1249.6,1249.4,1.19990758]
[1672928542659,13.4416505,1249.6,1249.4,1.19990758]
[1672928542862,3.58543778,1249.5,1249.4,1.19990758]
[1672928543385,13.4416505,1249.6,1249.4,1.19990758]
[1672928543710,10.2338505,1249.6,1249.4,1.19990758]
[1672928543921,3.2078,1249.5,1249.4,1.19990758]
[1672928544332,6.79323778,1249.5,1249.4,1.19990758]
[1672928544547,3.58543778,1249.5,1249.4,1.19990758]
[1672928544760,3.2078,1249.5,1249.4,1.19990758]
[1672928545496,6.79323778,1249.5,1249.4,1.19990758]
[1672928547601,3.58543778,1249.5,1249.4,1.19990758]
[1672928547816,6.79323778,1249.5,1249.4,1.19990758]
[1672928549076,3.2078,1249.5,1249.4,1.19990758]
[1672928551493,6.79323778,1249.5,1249.4,1.19990758]
[1672928552335,3.58543778,1249.5,1249.4,1.19990758]
[1672928552543,6.79323778,1249.5,1249.4,1.19990758]
[1672928552964,3.58543778,1249.5,1249.4,1.19990758]
[1672928553171,6.79323778,1249.5,1249.4,1.19990758]
[1672928553596,3.2078,1249.5,1249.4,1.19990758]
[1672928555698,6.79323778,1249.5,1249.4,1.19990758]
[1672928556116,3.58543778,1249.5,1249.4,1.19990758]
[1672928556429,6.79323778,1249.5,1249.4,1.19990758]